Cogmind - Beta 13 @@@ ROGUE MODE // 2024.04.09 @ 17:48:32 Player: Minty Result: Self-destructed Performance ------------- Evolutions (2) 1000 Regions Visited (4) 800 Robots Destroyed (52) 260 Value Destroyed (1685) 1685 Prototype IDs (12) 240 Alien Tech Used (0) 0 Bonus (64) 64 TOTAL SCORE: 4049 Bonus ------- High Alert Combat Kills 69 Follower Combat Kills 70 Friendly Fire -75 Cogmind --------- Core Integrity 69/550 Matter 295/300 Energy 50/100 System Corruption 0% Temperature Cool (0) Movement Core (50) Location -8/Materials Parts ------- > --- POWER (1) -------- (None) > --- PROPULSION (4) --- (None) > --- UTILITY (3) ------ Hacking Suite > --- WEAPON (3) ------- (None) > --- INVENTORY (5) ---- Improved Ion Engine Makeshift Sensor Array Scrap Shield Peak State ------------ > --- POWER ------------ Nuclear Core > --- PROPULSION ------- Flightbrick > --- UTILITY ---------- Improved Heat Sink Hacking Suite > --- WEAPON ----------- Subdweller Beam Cannon Subdweller Beam Cannon > --- INVENTORY -------- Improved Ion Engine Makeshift Sensor Array Scrap Shield Improved Medium Laser [Rating: 50] Favorites ----------- Power Subdweller Power Source Engine Subdweller Power Source Power Core Nuclear Core Propulsion Subdweller Monowheel Leg Aluminum Leg Wheel Subdweller Monowheel Hover Unit Hover Unit Flight Unit Flightbrick Utility High-capacity Storage Unit Device Sensor Array Storage High-capacity Storage Unit Processor Targeting Computer Hackware Hacking Suite Protection Makeshift Light Armor Plating Weapon Light Cannon Energy Gun Small Laser Energy Cannon Subdweller Beam Cannon Ballistic Gun Assault Rifle Ballistic Cannon Light Cannon Launcher Rocket Launcher Special Weapon Mining Laser Impact Weapon Mace Slashing Weapon Makeshift Sword Build | -11 -10 -10 -10 -8 ------- Run | Yrd Mat Min Sub Mat Slots Evolved 4 | . . . . 4 Power . | . . . . . Propulsion 2 | . . . . 2 Utility 1 | . . . . 1 Weapon 1 | . . . . 1 Parts Attached 67 | . 20 5 23 19 Power 13 | . 5 . 4 4 Engine 12 | . 5 . 4 3 Core 1 | . . . . 1 Reactor . | . . . . . Propulsion 18 | . 5 2 5 6 Treads . | . . . . . Leg 1 | . . . 1 . Wheel 10 | . 3 2 4 1 Hover 5 | . 2 . . 3 Flight 2 | . . . . 2 Utility 17 | . 8 . 4 5 Device 4 | . 1 . . 3 Storage 4 | . 3 . 1 . Processor 2 | . 1 . 1 . Hackware 1 | . . . . 1 Protection 6 | . 3 . 2 1 Artifact . | . . . . . Weapon 19 | . 2 3 10 4 Energy Gun 2 | . . . . 2 Energy Cannon 6 | . . . 4 2 Ballistic Gun 2 | . . . 2 . Ballistic Cannon 4 | . 2 1 1 . Launcher 2 | . . 1 1 . Special Weapon 1 | . . 1 . . Impact Weapon 1 | . . . 1 . Slashing Weapon 1 | . . . 1 . Piercing Weapon . | . . . . . Special Melee Weapon . | . . . . . Unidentified Prototypes . | . . . . . Parts Lost 14 | . 2 2 2 8 Power 1 | . 1 . . . Propulsion 7 | . . 1 1 5 Utility 3 | . 1 1 . 1 Weapon 3 | . . . 1 2 Highest Loss Streak 4 | . 1 2 1 4 To Critical Strikes . | . . . . . Average Slot Usage (%) 87 | . 98 92 88 35 Engine 12 | . 13 14 13 3 Wheel 18 | . 19 27 19 . Hover 2 | . 6 . . 3 Device 1 | . 3 . . 3 Storage 11 | . 12 14 12 . Processor 2 | . 1 . 5 . Protection 7 | . 9 7 8 . Energy Gun 1 | . 5 . . 2 Energy Cannon 7 | . . . 14 10 Ballistic Gun 2 | . 5 . 2 . Ballistic Cannon 8 | . 17 26 . . Launcher 1 | . . . 2 . Impact Weapon 2 | . . . 5 . Naked Turns . | . . . . . Heaviest Build 65 | 13 54 55 65 27 Greatest Support 40 | 20 32 32 40 24 Greatest Overweight (x) 21 | . 2 3 21 3 Average Overweight (x) 1 | . . 1 3 . Largest Inventory Capacity 20 | . 20 20 20 5 Average Capacity 16 | . 16 20 17 5 Most Carried 20 | . 20 20 20 5 Average Carried 15 | . 14 20 17 4 Final Capacity 20 | 8 20 20 5 5 Final Carried 20 | 6 20 20 5 4 Class Distribution -------------------- 85% | Mutant 8% | Scavenger-Mutant 6% | Subdweller-Mutant Dominant Class ---------------- Mutant | -10/Materials Mutant | -10/Mines Mutant | -10/Subcaves Mutant | -8/Materials Resources | -11 -10 -10 -10 -8 ----------- Run | Yrd Mat Min Sub Mat Matter Collected 1433 | 200 410 54 584 185 Remotely . | . . . . . Salvage Created 1549 | . 485 89 381 594 Parts 88 | . 26 9 19 34 Haulers Intercepted 3 | . 2 . . 1 Recyclers Shooed . | . . . . . Parts Field Recycled . | . . . . . Retrieved Matter . | . . . . . Parts Self-Destructed 7 | . . . 7 . Prevented . | . . . . . Kills | -11 -10 -10 -10 -8 ------- Run | Yrd Mat Min Sub Mat Combat Hostiles Destroyed 41 | . 13 4 10 14 Melee 1 | . . . 1 . Guns 4 | . 3 . 1 . Cannons 21 | . 10 1 5 5 AOE 13 | . . 3 3 7 Classes Destroyed 14 | . 5 2 4 3 Worker 1 | . . 1 . . Builder 1 | . . . . 1 Tunneler 3 | . . 3 . . Hauler 3 | . 2 . . 1 Operator 2 | . 1 . . 1 Watcher 1 | . 1 . . . Swarmer 9 | . 3 3 . 3 Grunt 22 | . 10 1 3 8 Brawler 1 | . . . . 1 Sentry 2 | . . . 1 1 Hunter 1 | . . . . 1 Artisan 1 | . . . 1 . Cobbler 1 | . . . 1 . Subdweller 6 | . . . 6 . Best Kill Streak 7 | . 3 3 2 7 Combat Bots Only 6 | . 3 3 2 6 Max Kills in Single Turn 4 | . 1 3 1 4 Gunslinging . | . . . . . Exploded 4 | . . 3 1 4 Melee 1 | . . . 1 . Uniques/NPCs Destroyed . | . . . . . Combat | -11 -10 -10 -10 -8 -------- Run | Yrd Mat Min Sub Mat Hostile Shots Fired 266 | . 78 21 43 124 Missed 98 | . 27 7 14 50 Damage Taken 2887 | . 618 199 606 1464 Core 723 | . 77 32 133 481 Absorbed by Shields . | . . . . . Core Remaining (%) 51 | 100 . . 3 . Volleys Fired 138 | . 52 20 38 28 Largest 3 | . 2 2 2 3 Hottest 216 | . 70 100 160 216 Shots Fired 238 | . 99 35 58 46 Gun 60 | . 41 . 11 8 Cannon 163 | . 58 29 38 38 Launcher 10 | . . 1 9 . Special 5 | . . 5 . . Kinetic 123 | . 79 29 15 . Thermal 105 | . 20 5 34 46 Explosive 10 | . . 1 9 . Electromagnetic . | . . . . . Robot Hit Streak 17 | . 9 3 17 6 Robot Miss Streak 6 | . 4 3 2 6 Penetration Max . | . . . . . Secondary Targets . | . . . . . Shots Hit Robots 147 | . 59 16 50 22 Core Hits 63 | . 23 8 18 14 Critical Kills 2 | . . . . 2 Critical Parts Destroyed 1 | . . . 1 . Critical Strikes 8 | . 3 2 1 2 Meltdown 2 | . . . . 2 Blast 5 | . 3 2 . . Smash 1 | . . . 1 . Melee Attacks 14 | . . . 14 . Impact 12 | . . . 12 . Slashing 2 | . . . 2 . Piercing . | . . . . . Sneak Attacks 2 | . . . 2 . Combat Hostiles . | . . . . . Follow-up Attacks . | . . . . . Damage Inflicted 4285 | . 921 492 1375 1497 Guns 576 | . 311 . 179 86 Cannons 1820 | . 610 274 496 440 Explosions 1469 | . . 170 358 941 Melee 342 | . . . 342 . Ramming 30 | . . . . 30 Kinetic 1314 | . 815 274 225 . Thermal 2071 | . 106 48 450 1467 Explosive 528 | . . 170 358 . Electromagnetic . | . . . . . Impact 342 | . . . 342 . Slashing . | . . . . . Piercing . | . . . . . Highest Corruption 3 | . 3 3 3 . Average Corruption 2 | . 2 3 3 . Corruption Purged . | . . . . . Corruption Blocked . | . . . . . Effects 46 | . 9 8 29 . Message Errors 9 | . 1 2 6 . Matter Fused 7 | . 2 1 4 . Heat Flow Errors 6 | . 2 . 4 . Energy Discharges 7 | . 2 2 3 . Parts Rejected 4 | . 2 . 2 . Data Loss (minor) 6 | . . 3 3 . Data Loss (major) 3 | . . . 3 . Misfires 3 | . . . 3 . Alerts 1 | . . . 1 . Overload Shots . | . . . . . Overflow Damage 222 | . 3 12 86 121 Projectiles 28 | . 3 6 . 19 Explosions 108 | . . 6 . 102 Melee 86 | . . . 86 . Knockbacks 10 | . 4 4 2 . Impact 2 | . . . 2 . Kinetic 8 | . 4 4 . . Secondary . | . . . . . Self-Inflicted Damage 219 | . . . . 219 Shots 3 | . . . . 3 Rammed 3 | . . . . 3 Targets Rammed 3 | . . . . 3 Kicked . | . . . . . Crushed . | . . . . . Highest Temperature 587 | . 288 288 216 587 Average Temperature 126 | . 91 99 72 206 Received Heat Transfer 1101 | . 363 126 180 432 Effects 17 | . 2 . . 15 Shutdowns 3 | . . . . 3 Energy Bleed 4 | . 1 . . 3 Interference 1 | . 1 . . . Damage (major) 7 | . . . . 7 Damage (core) 2 | . . . . 2 Siege Activations . | . . . . . Robots Corrupted . | . . . . . Combat Hostiles . | . . . . . Parts Fried 2 | . . . 2 . Impact Corruptions 3 | . . . 3 . Robots Melted 2 | . . . . 2 Combat Hostiles 2 | . . . . 2 Parts Melted 6 | . 1 . . 5 Heat Transferred 2371 | . 250 100 740 1281 Parts Sabotaged . | . . . . . Parts Stolen . | . . . . . Parts Stripped . | . . . . . Power Chain Reactions . | . . . . . Alert | -11 -10 -10 -10 -8 ------- Run | Yrd Mat Min Sub Mat Peak Influence 760 | . 236 160 . 760 Initial 33 | . . 33 . . Average 142 | . 92 117 . 327 Maximum Alert Level 3 | . 1 . . 3 Low Security (%) 84 | . 91 100 . 42 Level 1 7 | . 8 . . 12 Level 2 7 | . . . . 42 Level 3 . | . . . . 2 Level 4 . | . . . . . Level 5 . | . . . . . High Security . | . . . . . Max Security . | . . . . . Squads Dispatched 9 | . 3 . . 6 Investigation 6 | . 2 . . 4 Extermination . | . . . . . Reinforcement 2 | . 1 . . 1 Assault 1 | . . . . 1 Garrison . | . . . . . Intercept . | . . . . . Searches Triggered . | . . . . . Construction Impeded . | . . . . . Haulers Reinforced . | . . . . . Active Scanning Responses . | . . . . . Cargo Convoy Interrupts . | . . . . . Stealth | -11 -10 -10 -10 -8 --------- Run | Yrd Mat Min Sub Mat Distress Signals 2 | . 1 . . 1 Communications Jammed . | . . . . . Distress Signals . | . . . . . Times Spotted 64 | . 20 4 11 29 Peak Tracking Total 15 | . 4 3 2 15 Tactical Retreats 1 | . . . . 1 Traps | -11 -10 -10 -10 -8 ------- Run | Yrd Mat Min Sub Mat Traps Triggered 4 | . 3 . . 1 Indirectly . | . . . . . Trap Hack Attempts . | . . . . . Triggered . | . . . . . Disarmed . | . . . . . Reprogrammed . | . . . . . Reused . | . . . . . Traps Extracted . | . . . . . Installed . | . . . . . Triggered . | . . . . . Most Traps Carried 1 | . . . 1 . Machines | -11 -10 -10 -10 -8 ---------- Run | Yrd Mat Min Sub Mat Machines Disabled 10 | . 2 . 2 6 Max in Single Turn 3 | . 1 . 1 3 Garrison Access 1 | . . . . 1 Machines Repaired . | . . . . . Machines Dismantled . | . . . . . Machines Sabotaged . | . . . . . Overloaded Fab Kills . | . . . . . Hacking | -11 -10 -10 -10 -8 --------- Run | Yrd Mat Min Sub Mat Machines Accessed 8 | . 5 . 1 2 Terminals 5 | . 5 . . . Fabricators . | . . . . . Repair Stations . | . . . . . Recycling Units . | . . . . . Scanalyzers 1 | . . . . 1 Garrison Access 1 | . . . . 1 Total Hacks 35 | . 18 . 9 8 Successful 24 | . 11 . 9 4 Failed 11 | . 7 . . 4 Catastrophic 3 | . 1 . . 2 Database Lockouts . | . . . . . Manual 14 | . 11 . . 3 Terminals 18 | . 18 . . . Fabricators . | . . . . . Repair Stations . | . . . . . Recycling Units . | . . . . . Scanalyzers 5 | . . . . 5 Garrison Access 3 | . . . . 3 Terminal Hacks 18 | . 9 . 9 . Record 8 | . . . 8 . Prototype ID Bank 1 | . 1 . . . Alert Level 2 | . 2 . . . Locate Traps 1 | . 1 . . . Dispatch Records 1 | . 1 . . . Maintenance Status 1 | . 1 . . . Patrol Status 1 | . 1 . . . Registered Components 1 | . 1 . . . Zone Layout 1 | . 1 . . . Derelict Proto ID Bank 1 | . . . 1 . Fabricator Hacks . | . . . . . Repair Station Hacks . | . . . . . Recycling Unit Hacks . | . . . . . Scanalyzer 3 | . . . . 3 Insert Component 2 | . . . . 2 Analyze 1 | . . . . 1 Garrison Access Hacks . | . . . . . Unauthorized Hacks 3 | . 2 . . 1 Terminals 2 | . 2 . . . Botnet 2 | . 2 . . . Fabricators . | . . . . . Repair Stations . | . . . . . Recycling Units . | . . . . . Scanalyzers . | . . . . . Garrison Access 1 | . . . . 1 Reprogram 1 | . . . . 1 Data Cores Recovered . | . . . . . Used . | . . . . . Hacking Detections 7 | . 5 . . 2 Full Trace Events 3 | . 1 . . 2 Feedback Events . | . . . . . Feedback Blocked . | . . . . . Robot Schematics Acquired . | . . . . . Robots Built . | . . . . . Authchips . | . . . . . Time . | . . . . . Total Robot Build Rating . | . . . . . Part Schematics Acquired 1 | . . . . 1 Parts Built . | . . . . . Authchips . | . . . . . Time . | . . . . . Total Part Build Rating . | . . . . . Parts Repaired . | . . . . . Time . | . . . . . Parts Recycled . | . . . . . Recycled Matter . | . . . . . Retrieved Matter . | . . . . . Retrieved Components . | . . . . . Parts Scanalyzed 2 | . . . . 2 Part Schematics Acquired 1 | . . . . 1 Parts Damaged . | . . . . . Bothacking | -11 -10 -10 -10 -8 ------------ Run | Yrd Mat Min Sub Mat Used RIF Installer . | . . . . . Robots Hacked . | . . . . . Non-combat . | . . . . . Combat . | . . . . . Robot Hacks Applied . | . . . . . Relay Couplers Released 3 | . . . . 3 Machine Destruction 3 | . . . . 3 Fabnet Peak Effective % . | . . . . . Robots Rewired . | . . . . . Allies Hacked . | . . . . . Hacks Repelled . | . . . . . Allies | -11 -10 -10 -10 -8 -------- Run | Yrd Mat Min Sub Mat Total Allies 3 | . . . . 3 Largest Group 3 | . . . . 3 Highest-Rated Group 48 | . . . . 48 Highest-Rated Ally 16 | . . . . 16 Total Orders . | . . . . . Ally Attacks 17 | . . . . 17 Total Damage 237 | . . . . 237 Kills 2 | . . . . 2 Allies Corrupted . | . . . . . Allies Melted . | . . . . . Intel | -11 -10 -10 -10 -8 ------- Run | Yrd Mat Min Sub Mat Robot Analysis Total . | . . . . . Derelict Logs Recovered 1 | . . 1 . . Drone Launches . | . . . . . Drone Recoveries . | . . . . . Exploration | -11 -10 -10 -10 -8 ------------- Run | Yrd Mat Min Sub Mat Turns Passed 3251 | . 1007 379 1547 318 Spaces Moved 1973 | 1 827 268 553 324 Core 136 | . . . 96 40 Treads . | . . . . . Legs 51 | 1 49 . 1 . Wheels 1223 | . 495 268 456 4 Hover 328 | . 283 . . 45 Flight 235 | . . . . 235 Fastest Speed 40 | 120 56 105 107 40 Average Speed 131 | 120 95 113 244 47 Slowest Speed 1100 | 120 180 145 1100 240 Overloaded Moves . | . . . . . Propulsion Burnouts . | . . . . . Robots Hopped 13 | . . . . 13 Cave-ins Triggered . | . . . . . Exploration Rate (%) 50 | 2 95 75 42 37 Regions Visited 4 Branch Regions 2 Pre-discovered Areas 2 | . . 2 . . Known Exits Taken . | . . . . . Unknown Exits Taken 4 | 1 1 1 1 . Scrap Searched 4 | . . . 4 . Spaces Dug . | . . . . . Terrain Destroyed 152 | . . 13 67 72 Melee . | . . . . . Projectile 17 | . . . 8 9 AOE 135 | . . 13 59 63 Terrain Rammed . | . . . . . Walls Destroyed . | . . . . . Machines Disabled . | . . . . . Actions | -11 -10 -10 -10 -8 --------- Run | Yrd Mat Min Sub Mat Total 2361 | . 948 297 686 430 Wait 69 | . 6 . 10 53 Move 1947 | . 826 267 552 302 Hop 9 | . . . . 9 Pick Up 45 | . 26 2 16 1 Fast Attach 27 | . 8 1 8 10 Attach 12 | . 3 . 2 7 Detach 13 | . 3 . 1 9 Swap 28 | . 9 4 13 2 Drop 54 | . 15 3 30 6 Fire 138 | . 52 20 38 28 Melee 14 | . . . 14 . Ram 3 | . . . . 3 Kick . | . . . . . Crush . | . . . . . Escape Stasis . | . . . . . Rewire . | . . . . . Trap . | . . . . . Miscellaneous 2 | . . . 2 . Route ------- -11/Scrapyard -10/Materials (discovered 5 exits: *Mat x3 / [*Min x2]) -10/Mines (discovered 4 exits: *Mat x2 / [*Exi] / *Sub) -10/Subcaves -8/Materials History --------- Turn | Location | Event 1 | -11/Scrapyard | Discovered new exit (range 0) 1 | -11/Scrapyard | Entered Materials 94 | -10/Materials | Discovered new exit (range 16) 109 | -10/Materials | Identified exit to Materials 172 | -10/Materials | Discovered new exit (range 7) 291 | -10/Materials | Discovered exit to Materials (range 16) 336 | -10/Materials | Build established: Mutant 372 | -10/Materials | Discovered exit to Materials (range 6) 868 | -10/Materials | Discovered new exit (range 7) 1008 | -10/Materials | Entered Mines 1009 | -10/Mines | Learned location of Storage (-8) 1029 | -10/Mines | Met a Derelict bent on vengeance 1030 | -10/Mines | Received a Rocket Launcher from a helpful Derelict 1088 | -10/Mines | Discovered exit to Materials (range 8) 1105 | -10/Mines | Learned location of Zion (-6) 1282 | -10/Mines | Deemed a non-threat by the Exiles lab entrance 1282 | -10/Mines | Discovered new exit (range 5) 1336 | -10/Mines | Discovered exit to Materials (range 3) 1382 | -10/Mines | Discovered new exit (range 3) 1387 | -10/Mines | Entered Subcaves 1436 | -10/Subcaves | Ambushed by angry Subdweller bent on revenge 1542 | -10/Subcaves | Core integrity fell below 50% 1665 | -10/Subcaves | Visited 4L-MR0's lab 1682 | -10/Subcaves | Found Flightbrick 1950 | -10/Subcaves | Core integrity fell below 20% 2882 | -10/Subcaves | Discovered new exit (range 9) 2934 | -10/Subcaves | Entered Materials 2934 | -8/Materials | Evolved 4 slots: Propulsion x2, Utility x1, Weapon x1 2935 | -8/Materials | Attached Flightbrick, gained temporary slots: Utility x3 3191 | -8/Materials | Lost 3 allies 3208 | -8/Materials | Lost 4 parts (3n1u) 3217 | -8/Materials | Core integrity fell below 50% 3247 | -8/Materials | Core integrity fell below 20% 3252 | -8/Materials | Self-destructed Last Messages --------------- 03202_ K-01 Serf collects debris. 03205_ R-06 Scavenger inserts Terrain Scan Processor into recycling unit. 03205_ K-01 Serf collects debris. 03208_ R-06 Scavenger inserts Imp. Utility Shielding into recycling unit. 03209_ Recycling unit begins recycling process. 03209_ K-01 Serf collects debris. 03216_ Flight Unit destroyed. 03216_ Penetrated by Slug. 03244_ Fusion Modulator explodes. 03244_ G-47 Trooper destroyed. 03244_ H-55 Commando destroyed. 03244_ Fusion Modulator explodes. 03244_ Sub. Beam Cannon destroyed. 03244_ Destroyed Sub. Beam Cannon. 03244_ G-50 Soldier destroyed. 03244_ Fusion Modulator explodes. 03247_ Atomic Centrifuge disabled. 03248_ Imp. Hover Unit destroyed. 03249_ Destroyed Particle Gun. 03249_ Imp. Medium Laser destroyed. Map ----- +----------------------------------------------------+ | | | | | | | | | | | | | | | | | | | | | | | | | | | | | ????????????????############?????????????????????? | | ????????????????# #????????????????????? | | ????????????????# #????????????????????? | | ????????????????# """ """ #??????? ???????????? | | ????????????????# """ """ #?????? ""???????????? | | ????????????????# """ "" #???? ""???????????? | | ????????????????#] #??? ""???????????? | | ????????????????# ###;;#;;#####????????? | | ???????????????#####;;;;;; ;;; ??????? | | ???????????????# #??????????? | | ???????????????# ;#?????????? | | ???????????????#!! @ ;#?????????? | | ???????????????#!! [ ;#?????????? | | ???????????????#!! = ; ]???????? | | ???????????????# ! ; ????????? | | ? ###+####### % # ????????? | | ? =g ggY #??????????? | | ? Y g i +??????????? | | ? h #??????????? | | ? ############+############### #??????????? | | ??????????????? ????????????##b #??????????? | | ?????????????# ############ #??????????? | | ?????????????# # ## #??????????? | | ?????????????# # ## #??????????? | | ?????????????# # """ ] ## #??????????? | | ?????????????# #?""""" + #??????????? | | ?????????????# # """"" ## #??????????? | | ?????????????# # """"" ## #??????????? | | ?????????????# # """ [## #??????????? | | ########?????########## ## #??????????? | | #[ ! #????????? ########+### #??????????? | | # #?????????? #???# #??????????? | | # [[ #?????????? #???# #??????????? | | # [[ #??????????? ????# #??????????? | | # #??????????? ????# ########??????????? | | # % #??????????##/###### #?????????????????? | +----------------------------------------------------+ Best States ------------- Heat Dissipation 45 Energy Generation 15 Energy Capacity 265 Matter Stores 300 Matter Capacity 300 Sight Range 16 Robot Scan Range 19 Terrain Scan Density 10 Armor Coverage 800 Utility Shielding 66 Evasion (%) 62 Targeting Accuracy 5 Offensive Hacking 10 Item Schematics ----------------- Sub. Power Source | -8/Materials | Scanalyzed Robot Schematics ------------------ None Fabricated ------------ Nothing Alien Tech Used ----------------- None Achievements -------------- None Challenges ------------ None Game ------ Seed WarpStorageRedirector Manual? 0 Play Time 00:20:35 Cumulative 709.5 hours Start 2024.04.09 @ 17:31:55 End 2024.04.09 @ 17:48:32 Sessions 1 Manual Loads 0 Difficulty Rogue Special Mode None Game No. 754 Rogue 479 Adventurer 123 Explorer 152 Win Type - Total 26 Types 20/0/4/1/0/0/0/1/0 Lore% 83 Gallery% 91 Achievement% 76 Wizard Run 0 Options --------- Layout 0 ASCII 0 Keyboard 1 Movement Numpad Keybinds 0 Fullscreen 2 Font 18/Terminus Map View 76x50 Zoom Use 1% Tactical HUD 1 Map Filters NONE Filters NONE Steam 1 RUN: d6d9d18c-68b5-4d60-bbdc-45425a5cdaa0